[Event "Early-Titled-Tuesday-Blitz-April-23-2024"]
[Site "Chess.com"]
[Date "2024.04.23"]
[Round "11"]
[White "tusplingher"]
[Black "KnightDuta"]
[Result "1-0"]
[WhiteElo "2656"]
[BlackElo "2738"]
[TimeControl "180+1"]
[EndTime "10:13:21 PDT"]
[Termination "tusplingher won on time"]

1. e4 {[%clk 0:03:00.9]} 1... d5 {[%clk 0:02:59.5]} 2. exd5 {[%clk 0:02:55]}
2... Nf6 {[%clk 0:02:59.6]} 3. d4 {[%clk 0:02:53.2]} 3... Nxd5 {[%clk
0:02:59.2]} 4. Nf3 {[%clk 0:02:51.6]} 4... Bg4 {[%clk 0:02:59.1]} 5. Be2 {[%clk
0:02:49.5]} 5... e6 {[%clk 0:02:58.4]} 6. h3 {[%clk 0:02:47.4]} 6... Bxf3 {[%clk
0:02:58.2]} 7. Bxf3 {[%clk 0:02:46.2]} 7... Nc6 {[%clk 0:02:56.9]} 8. O-O {[%clk
0:02:44.4]} 8... Be7 {[%clk 0:02:56.9]} 9. c3 {[%clk 0:02:37.1]} 9... O-O {[%clk
0:02:56.9]} 10. Nd2 {[%clk 0:02:37]} 10... e5 {[%clk 0:02:52.1]} 11. dxe5 {[%clk
0:02:33.6]} 11... Nxe5 {[%clk 0:02:53]} 12. Be4 {[%clk 0:02:23.5]} 12... c6
{[%clk 0:02:52.9]} 13. Nf3 {[%clk 0:02:17]} 13... Ng6 {[%clk 0:02:40.3]} 14. Re1
{[%clk 0:02:13.1]} 14... Nf6 {[%clk 0:02:38.8]} 15. Bc2 {[%clk 0:02:10.7]} 15...
Qxd1 {[%clk 0:02:37.7]} 16. Rxd1 {[%clk 0:02:09.9]} 16... Bc5 {[%clk 0:02:35.6]}
17. Bg5 {[%clk 0:01:47.2]} 17... Nd5 {[%clk 0:02:33.9]} 18. Re1 {[%clk
0:01:37.2]} 18... h6 {[%clk 0:02:31.1]} 19. Bd2 {[%clk 0:01:33.7]} 19... Rad8
{[%clk 0:02:28.7]} 20. Rad1 {[%clk 0:01:32.8]} 20... a5 {[%clk 0:02:10.3]} 21.
a3 {[%clk 0:01:29.2]} 21... Bb6 {[%clk 0:02:04]} 22. c4 {[%clk 0:01:23.3]} 22...
Ndf4 {[%clk 0:02:03.9]} 23. h4 {[%clk 0:01:09.7]} 23... h5 {[%clk 0:01:53.3]}
24. Bxf4 {[%clk 0:01:00.5]} 24... Nxf4 {[%clk 0:01:54.2]} 25. Rxd8 {[%clk
0:00:57.3]} 25... Rxd8 {[%clk 0:01:55.1]} 26. Re7 {[%clk 0:00:56.5]} 26... Nd3
{[%clk 0:01:33]} 27. Bxd3 {[%clk 0:00:44.8]} 27... Rxd3 {[%clk 0:01:33.9]} 28.
Ng5 {[%clk 0:00:38.2]} 28... g6 {[%clk 0:01:22.5]} 29. Rxb7 {[%clk 0:00:34.2]}
29... Rd1+ {[%clk 0:01:22.6]} 30. Kh2 {[%clk 0:00:34.3]} 30... Bxf2 {[%clk
0:01:23.5]} 31. Nxf7 {[%clk 0:00:21]} 31... Bxh4 {[%clk 0:01:19.2]} 32. Ne5
{[%clk 0:00:21.3]} 32... Rd6 {[%clk 0:01:10.4]} 33. Rc7 {[%clk 0:00:16.8]} 33...
Re6 {[%clk 0:01:05.6]} 34. Nxc6 {[%clk 0:00:14]} 34... Re3 {[%clk 0:01:06.2]}
35. Rc8+ {[%clk 0:00:13.6]} 35... Kg7 {[%clk 0:01:06.2]} 36. g3 {[%clk
0:00:08.1]} 36... Bxg3+ {[%clk 0:01:04.6]} 37. Kg2 {[%clk 0:00:08.6]} 37... Bf4
{[%clk 0:00:57.8]} 38. Nd4 {[%clk 0:00:08.8]} 38... Be5 {[%clk 0:00:54.5]} 39.
Nf3 {[%clk 0:00:08.3]} 39... Bxb2 {[%clk 0:00:53.3]} 40. c5 {[%clk 0:00:08.9]}
40... Bxa3 {[%clk 0:00:53.2]} 41. c6 {[%clk 0:00:09.3]} 41... Rc3 {[%clk
0:00:53.7]} 42. Nd4 {[%clk 0:00:06.1]} 42... Bd6 {[%clk 0:00:47.7]} 43. Nb5
{[%clk 0:00:05.5]} 43... Rc2+ {[%clk 0:00:48.3]} 44. Kf3 {[%clk 0:00:05.6]}
44... Be5 {[%clk 0:00:48.1]} 45. Ke4 {[%clk 0:00:05.4]} 45... Bg3 {[%clk
0:00:47.8]} 46. Kd3 {[%clk 0:00:05.6]} 46... Rc5 {[%clk 0:00:46.7]} 47. Nd4
{[%clk 0:00:06]} 47... Rd5 {[%clk 0:00:41.1]} 48. Ke4 {[%clk 0:00:05.9]} 48...
Re5+ {[%clk 0:00:20.6]} 49. Kf3 {[%clk 0:00:06.1]} 49... Bh2 {[%clk 0:00:21.3]}
50. c7 {[%clk 0:00:06.7]} 50... Re7 {[%clk 0:00:12.8]} 51. Rg8+ {[%clk
0:00:06.6]} 51... Kxg8 {[%clk 0:00:13.5]} 52. c8=Q+ {[%clk 0:00:07.5]} 52... Kg7
{[%clk 0:00:13.5]} 53. Ne6+ {[%clk 0:00:06.6]} 53... Kf6 {[%clk 0:00:14.2]} 54.
Nc5 {[%clk 0:00:06.9]} 54... Kg7 {[%clk 0:00:10.2]} 55. Qd8 {[%clk 0:00:06.7]}
55... Rf7+ {[%clk 0:00:10.3]} 56. Kg2 {[%clk 0:00:06.9]} 56... Be5 {[%clk
0:00:09.9]} 57. Ne6+ {[%clk 0:00:07.1]} 57... Kh6 {[%clk 0:00:09.4]} 58. Qg8
{[%clk 0:00:04.9]} 58... Re7 {[%clk 0:00:03.3]} 59. Qf8+ {[%clk 0:00:05.3]}
59... Rg7 {[%clk 0:00:03.5]} 60. Nxg7 {[%clk 0:00:05]} 60... Bxg7 {[%clk
0:00:04.4]} 61. Qf4+ {[%clk 0:00:05.4]} 61... Kh7 {[%clk 0:00:05.3]} 62. Kf2
{[%clk 0:00:05.1]} 62... Bh6 {[%clk 0:00:03.2]} 63. Qe4 {[%clk 0:00:05.6]} 63...
Bg7 {[%clk 0:00:02.6]} 64. Kf3 {[%clk 0:00:06.5]} 64... Kh6 {[%clk 0:00:03.1]}
65. Qe6 {[%clk 0:00:07.2]} 65... a4 {[%clk 0:00:03]} 66. Qc4 {[%clk 0:00:06.6]}
66... a3 {[%clk 0:00:03.5]} 67. Qa6 {[%clk 0:00:06.8]} 67... Bb2 {[%clk
0:00:03.6]} 68. Ke4 {[%clk 0:00:06.6]} 68... Kg5 {[%clk 0:00:03.9]} 69. Qe6
{[%clk 0:00:06.1]} 69... h4 {[%clk 0:00:04.8]} 70. Qe7+ {[%clk 0:00:05.9]} 70...
Kh5 {[%clk 0:00:05.3]} 71. Kf4 {[%clk 0:00:05.4]} 71... Bc1+ {[%clk 0:00:05.6]}
72. Kf3 {[%clk 0:00:05.9]} 72... Bb2 {[%clk 0:00:06.5]} 73. Qh7+ {[%clk
0:00:05.6]} 73... Kg5 {[%clk 0:00:07]} 74. Qg8 {[%clk 0:00:05.6]} 74... Kf5
{[%clk 0:00:04.4]} 75. Qd5+ {[%clk 0:00:05.2]} 75... Kf6 {[%clk 0:00:04]} 76.
Kg4 {[%clk 0:00:05.6]} 1-0

[Event "Early-Titled-Tuesday-Blitz-April-23-2024"]
[Site "Chess.com"]
[Date "2024.04.23"]
[Round "11"]
[White "LionelMessiFCB"]
[Black "Abund"]
[Result "1/2-1/2"]
[WhiteElo "2486"]
[BlackElo "2772"]
[TimeControl "180+1"]
[EndTime "10:13:24 PDT"]
[Termination "Game drawn by repetition"]

1. c4 {[%clk 0:02:59.5]} 1... g6 {[%clk 0:03:00.3]} 2. g3 {[%clk 0:02:58.8]}
2... e5 {[%clk 0:03:00.3]} 3. Bg2 {[%clk 0:02:58.8]} 3... Bg7 {[%clk 0:03:01]}
4. Nc3 {[%clk 0:02:58.6]} 4... Ne7 {[%clk 0:03:00.7]} 5. e3 {[%clk 0:02:58.8]}
5... Nbc6 {[%clk 0:03:00]} 6. Nge2 {[%clk 0:02:58.9]} 6... Nf5 {[%clk
0:02:57.9]} 7. O-O {[%clk 0:02:58.4]} 7... O-O {[%clk 0:02:57.9]} 8. Rb1 {[%clk
0:02:57.9]} 8... a5 {[%clk 0:02:57.6]} 9. a3 {[%clk 0:02:57.5]} 9... d6 {[%clk
0:02:56.7]} 10. b4 {[%clk 0:02:56.7]} 10... axb4 {[%clk 0:02:55.7]} 11. axb4
{[%clk 0:02:57.6]} 11... Nce7 {[%clk 0:02:45]} 12. d4 {[%clk 0:02:53.4]} 12...
c6 {[%clk 0:02:38.5]} 13. b5 {[%clk 0:02:50.3]} 13... Be6 {[%clk 0:02:30.3]} 14.
bxc6 {[%clk 0:02:47.5]} 14... bxc6 {[%clk 0:02:31.2]} 15. d5 {[%clk 0:02:47.1]}
15... Bd7 {[%clk 0:02:27.2]} 16. Ne4 {[%clk 0:02:29.3]} 16... cxd5 {[%clk
0:02:19.5]} 17. cxd5 {[%clk 0:02:30.2]} 17... h5 {[%clk 0:02:12.6]} 18. N2c3
{[%clk 0:02:25.7]} 18... Qc7 {[%clk 0:02:06.2]} 19. Bd2 {[%clk 0:02:15.4]} 19...
Rfb8 {[%clk 0:02:04.2]} 20. Qe2 {[%clk 0:02:13.6]} 20... Bc8 {[%clk 0:01:54.4]}
21. Rfc1 {[%clk 0:02:11.5]} 21... Ba6 {[%clk 0:01:52.1]} 22. Rxb8+ {[%clk
0:01:43.1]} 22... Qxb8 {[%clk 0:01:51.6]} 23. Qd1 {[%clk 0:01:43.4]} 23... Bc4
{[%clk 0:01:47.3]} 24. Rb1 {[%clk 0:01:39.4]} 24... Qc7 {[%clk 0:01:43.1]} 25.
Be1 {[%clk 0:01:37.1]} 25... Nc8 {[%clk 0:01:34.7]} 26. Nb5 {[%clk 0:01:31.7]}
26... Qd7 {[%clk 0:01:25.6]} 27. Nec3 {[%clk 0:01:26.8]} 27... Nfe7 {[%clk
0:01:20.4]} 28. Rb4 {[%clk 0:01:16]} 28... Nb6 {[%clk 0:01:06.5]} 29. Qb1 {[%clk
0:01:15]} 29... Bxd5 {[%clk 0:00:44.8]} 30. Nxd5 {[%clk 0:01:04.8]} 30... Nbxd5
{[%clk 0:00:45.2]} 31. Rb2 {[%clk 0:00:59.2]} 31... Rb8 {[%clk 0:00:42.8]} 32.
e4 {[%clk 0:00:26]} 32... Nc7 {[%clk 0:00:37.2]} 33. Nxc7 {[%clk 0:00:25.2]}
33... Rxb2 {[%clk 0:00:37.2]} 34. Qxb2 {[%clk 0:00:26.1]} 34... Qxc7 {[%clk
0:00:37.9]} 35. Bf1 {[%clk 0:00:24.3]} 35... Bf8 {[%clk 0:00:34.3]} 36. Qc3
{[%clk 0:00:21.2]} 36... Qb7 {[%clk 0:00:33.7]} 37. f3 {[%clk 0:00:17.6]} 37...
Nc6 {[%clk 0:00:33]} 38. Bc4 {[%clk 0:00:16.9]} 38... Qb1 {[%clk 0:00:28.9]} 39.
Kg2 {[%clk 0:00:16.4]} 39... Nd4 {[%clk 0:00:24.2]} 40. Bf2 {[%clk 0:00:16.8]}
40... Bg7 {[%clk 0:00:22]} 41. Bd5 {[%clk 0:00:16.7]} 41... Qb8 {[%clk
0:00:18.2]} 42. f4 {[%clk 0:00:16.6]} 42... Qe8 {[%clk 0:00:17.4]} 43. fxe5
{[%clk 0:00:15.9]} 43... dxe5 {[%clk 0:00:17.3]} 44. Qc7 {[%clk 0:00:15]} 44...
Ne6 {[%clk 0:00:17]} 45. Qd6 {[%clk 0:00:14.9]} 45... Nf8 {[%clk 0:00:15.3]} 46.
Bc5 {[%clk 0:00:14.4]} 46... Nd7 {[%clk 0:00:13.8]} 47. Be3 {[%clk 0:00:14.4]}
47... Nf6 {[%clk 0:00:13.4]} 48. Bc6 {[%clk 0:00:13.3]} 48... Qc8 {[%clk
0:00:08.6]} 49. Bb6 {[%clk 0:00:13.2]} 49... Ng4 {[%clk 0:00:07.5]} 50. h3
{[%clk 0:00:12.9]} 50... Nf6 {[%clk 0:00:07.3]} 51. Bd8 {[%clk 0:00:12.8]} 51...
Nh7 {[%clk 0:00:06.6]} 52. Be7 {[%clk 0:00:12.6]} 52... Nf8 {[%clk 0:00:06.8]}
53. Bd5 {[%clk 0:00:11.6]} 53... Qc2+ {[%clk 0:00:06.1]} 54. Kf3 {[%clk
0:00:11.9]} 54... Qd3+ {[%clk 0:00:06.6]} 55. Kg2 {[%clk 0:00:12.3]} 55... Qe2+
{[%clk 0:00:06.9]} 56. Kg1 {[%clk 0:00:12.7]} 56... Qe3+ {[%clk 0:00:07.2]} 57.
Kg2 {[%clk 0:00:13.2]} 57... Qe2+ {[%clk 0:00:07.6]} 58. Kg1 {[%clk 0:00:13.5]}
58... Ne6 {[%clk 0:00:06]} 59. Bxe6 {[%clk 0:00:12.3]} 59... fxe6 {[%clk
0:00:06.9]} 60. Qxe6+ {[%clk 0:00:13.1]} 60... Kh7 {[%clk 0:00:07.6]} 61. Qf7
{[%clk 0:00:13.5]} 61... Qe3+ {[%clk 0:00:08.1]} 62. Kg2 {[%clk 0:00:13.6]}
62... Qxe4+ {[%clk 0:00:08.6]} 63. Kg1 {[%clk 0:00:13.8]} 63... Qb1+ {[%clk
0:00:08.2]} 64. Kg2 {[%clk 0:00:13.9]} 64... Qc2+ {[%clk 0:00:08.6]} 65. Kg1
{[%clk 0:00:14.2]} 65... Qc7 {[%clk 0:00:08.1]} 66. g4 {[%clk 0:00:13.1]} 66...
hxg4 {[%clk 0:00:06.3]} 67. hxg4 {[%clk 0:00:14]} 67... e4 {[%clk 0:00:06.8]}
68. g5 {[%clk 0:00:13.5]} 68... Qg3+ {[%clk 0:00:06.5]} 69. Kf1 {[%clk
0:00:13.6]} 69... Qd3+ {[%clk 0:00:06.8]} 70. Kg2 {[%clk 0:00:13.6]} 70... Qd2+
{[%clk 0:00:07]} 71. Kg3 {[%clk 0:00:13.7]} 71... Qe1+ {[%clk 0:00:06.9]} 72.
Kg2 {[%clk 0:00:13.7]} 72... Qe2+ {[%clk 0:00:07.2]} 73. Kg3 {[%clk 0:00:13.9]}
73... Qe3+ {[%clk 0:00:05.6]} 74. Kg2 {[%clk 0:00:13.7]} 74... Qd2+ {[%clk
0:00:06.1]} 75. Kg3 {[%clk 0:00:13.8]} 75... Qc3+ {[%clk 0:00:06.6]} 76. Kg2
{[%clk 0:00:13.9]} 76... Qb2+ {[%clk 0:00:06.8]} 77. Kg3 {[%clk 0:00:14]} 77...
Qe5+ {[%clk 0:00:07.5]} 78. Kg2 {[%clk 0:00:14.2]} 78... Qb2+ {[%clk 0:00:03.9]}
79. Kh3 {[%clk 0:00:13.3]} 79... Qc3+ {[%clk 0:00:03.9]} 80. Kg2 {[%clk
0:00:13.6]} 80... Qd2+ {[%clk 0:00:04.4]} 1/2-1/2